lending/lending_fUSD_20251114
["ID","MTS","AMOUNT","RATE_DAILY","PERIOD"]
[393904463,1763089822977,841.83,0.00040984,30]
[393904465,1763089823062,500.0,0.00040984,30]
[393904467,1763089823104,500.0,0.00040984,30]
[393904468,1763089823155,500.0,0.00040984,30]
[393904469,1763089823201,1066.08263315,0.00040984,30]
[393904470,1763089823235,841.86115286,0.00040984,30]
[393904471,1763089823269,500.0,0.00040984,30]
[393904473,1763089823307,500.0,0.00040984,30]
[393904475,1763089823340,500.0,0.00040984,30]
[393904476,1763089823381,500.0,0.00040984,30]
[393904477,1763089823434,500.0,0.00040984,30]
[393904479,1763089823522,500.0,0.00040984,30]
[393904480,1763089823554,500.0,0.00040984,30]
[393904482,1763089823680,500.0,0.00040984,30]
[393904483,1763089823776,365.53606199,0.00040984,30]
[393904485,1763089823812,500.0,0.00040984,30]
[393904487,1763089823941,500.0,0.00040984,30]
[393904488,1763089824003,500.0,0.00040984,30]
[393904489,1763089824043,329.90047762,0.00040984,30]
[393904497,1763089824506,500.0,0.00040984,30]
[393904498,1763089824540,456.55324291,0.00040984,30]
[393904500,1763089824573,500.0,0.00040984,30]
[393904501,1763089824610,238.10798672,0.00040984,30]
[393904503,1763089824650,500.0,0.00040984,30]
[393904506,1763089824895,500.0,0.00040984,30]
[393904509,1763089825168,500.0,0.00040984,30]
[393904511,1763089825370,489.38808809,0.00040984,30]
[393904512,1763089825426,500.0,0.00040984,30]
[393904515,1763089825669,490.66237568,0.00040984,30]
[393904517,1763089825919,500.0,0.00040984,30]
[393904519,1763089826144,376.4857037,0.00040984,30]
[393904521,1763089826361,500.0,0.00040984,30]
[393904522,1763089826394,652.28,0.00040984,30]
[393904523,1763089826464,580.79283345,0.00040984,30]
[393904524,1763089826500,503.27280638,0.00040984,30]
[393904526,1763089826604,500.0,0.00040984,30]
[393904527,1763089826687,500.0,0.00040984,30]
[393904529,1763089826861,500.0,0.00040984,30]
[393904530,1763089826934,500.0,0.00040984,30]
[393904532,1763089826984,652.28,0.00040984,30]
[393904534,1763089827172,518.22905095,0.00040984,30]
[393904536,1763089827206,500.0,0.00040984,30]
[393904537,1763089827241,652.28,0.00040984,30]
[393904538,1763089827309,230.52086306,0.00040984,30]
[393904539,1763089827418,500.0,0.00040984,30]
[393904541,1763089827497,652.28,0.00040984,30]
[393904542,1763089827528,500.0,0.00040984,30]
[393904543,1763089827668,500.0,0.00040984,30]
[393904545,1763089827748,652.28,0.00040984,30]
[393904546,1763089827782,500.0,0.00040984,30]
[393904547,1763089827918,500.0,0.00040984,30]
[393904549,1763089828015,500.0,0.00040984,30]
[393904550,1763089828047,652.28,0.00040984,30]
[393904551,1763089828200,500.0,0.00040984,30]
[393904553,1763089828276,500.0,0.00040984,30]
[393904554,1763089828312,652.28,0.00040984,30]
[393904555,1763089828434,423.62115788,0.00040984,30]
[393904558,1763089828746,500.0,0.00040984,30]
[393904560,1763089828778,652.28,0.00040984,30]
[393904562,1763089828811,500.0,0.00040984,30]
[393904563,1763089828901,652.28,0.00040984,30]
[393904564,1763089828941,500.0,0.00040984,30]
[393904566,1763089828973,500.0,0.00040984,30]
[393904569,1763089829052,652.28,0.00040984,30]
[393904570,1763089829091,500.0,0.00040984,30]
[393904571,1763089829122,500.0,0.00040984,30]
[393904574,1763089829215,500.0,0.00040984,30]
[393904577,1763089829287,652.28,0.00040984,30]
[393904578,1763089829323,345.82573612,0.00040984,30]
[393904579,1763089829362,500.0,0.00040984,30]
[393904580,1763089829393,500.0,0.00040984,30]
[393904581,1763089829475,500.0,0.00040984,30]
[393904582,1763089829529,178.47007815,0.00040984,30]
[393904583,1763089829566,652.28,0.00040984,30]
[393904585,1763089829598,160.15572796,0.00040984,30]
[393904587,1763089829628,500.0,0.00040984,30]
[393904591,1763089829732,500.0,0.00040984,30]
[393904594,1763089829784,503.26186729,0.00040984,30]
[393904596,1763089829817,652.28,0.00040984,30]
[393904597,1763089829849,500.0,0.00040984,30]
[393904598,1763089829918,500.0,0.00040984,30]
[393904601,1763089829968,500.0,0.00040984,30]
[393904602,1763089830048,652.28,0.00040984,30]
[393904603,1763089830081,279.81218843,0.00040984,30]
[393904604,1763089830171,357.950868,0.00040984,30]
[393904606,1763089830214,500.0,0.00040984,30]
[393904608,1763089830295,652.28,0.00040984,30]
[393904610,1763089830482,500.0,0.00040984,30]
[393904612,1763089830542,652.28,0.00040984,30]
[393904614,1763089830763,500.0,0.00040984,30]
[393904615,1763089830801,652.28,0.00040984,30]
[393904616,1763089830837,500.0,0.00040984,30]
[393904618,1763089831016,500.0,0.00040984,30]
[393904619,1763089831054,652.28,0.00040984,30]
[393904620,1763089831087,500.0,0.00040984,30]
[393904621,1763089831297,500.0,0.00040984,30]
[393904624,1763089831397,652.28,0.00040984,30]
[393904628,1763089831436,500.0,0.00040984,30]
[393904629,1763089831451,-300.0,0.00016898,2]
[393904630,1763089831460,-867.03568758,0.00016898,2]
[393904631,1763089831471,-332.96431242,0.00016898,2]
[393904632,1763089831481,-300.0,0.00016898,2]
[393904633,1763089831491,-79.21443385,0.00016899,2]
[393904634,1763089831504,-77.11102247,0.00016899,2]
[393904635,1763089831513,-556.38858045,0.00016899,2]
[393904636,1763089831642,500.0,0.00040984,30]
[393904638,1763089831687,500.0,0.00040984,30]
[393904639,1763089831728,-643.61141955,0.00016899,2]
[393904640,1763089831737,-300.0,0.00016899,2]
[393904641,1763089831747,-165.0,0.00016899,2]
[393904642,1763089831756,-156.3254563,0.000169,2]
[393904643,1763089831765,-2968.10697547,0.000169,2]
[393904644,1763089831774,-157.7145291,0.000169,2]
[393904645,1763089831783,-2500.0,0.000169,2]
[393904646,1763089831792,-225.11250025,0.000169,2]
[393904648,1763089831801,-156.3254563,0.000169,2]
[393904650,1763089831810,-1000.0,0.000169,2]
[393904652,1763089831819,-628.04625945,0.000169,2]
[393904654,1763089831828,-500.0,0.00016973,2]
[393904656,1763089831837,-500.0,0.00016973,2]
[393904658,1763089831845,-501.87365056,0.00016973,2]
[393904660,1763089831855,-500.0,0.00016973,2]
[393904663,1763089831864,-151.0,0.0001699,2]
[393904664,1763089831874,-151.0,0.0001699,2]
[393904666,1763089831883,-151.0,0.0001699,2]
[393904668,1763089831892,-151.0,0.0001699,2]
[393904670,1763089831902,-151.0,0.0001699,2]
[393904672,1763089831911,-151.0,0.0001699,2]
[393904674,1763089831920,-151.0,0.0001699,2]
[393904676,1763089831930,-151.0,0.0001699,2]
[393904678,1763089831939,-151.0,0.0001699,2]
[393904680,1763089831949,-151.0,0.0001699,2]
[393904682,1763089831959,-151.0,0.0001699,2]
[393904684,1763089831968,-151.0,0.0001699,2]
[393904687,1763089831978,-151.0,0.0001699,2]
[393904688,1763089831988,-151.0,0.0001699,2]
[393904690,1763089831998,-151.0,0.0001699,2]
[393904692,1763089832007,-151.0,0.0001699,2]
[393904694,1763089832015,-151.0,0.0001699,2]
[393904696,1763089832026,-3294.5114945,0.00016999,2]
[393904697,1763089832086,-10913.08473341,0.00016999,2]
[393904698,1763089832095,-500.0,0.00016999,2]
[393904699,1763089832104,-503.51367098,0.00016999,2]
[393904700,1763089832113,-500.0,0.00016999,2]
[393904701,1763089832122,-500.0,0.00016999,2]
[393904702,1763089832131,-150.0,0.00016999,2]
[393904703,1763089832141,-163.1214995,0.00016999,2]
[393904704,1763089832150,-500.0,0.00016999,2]
[393904705,1763089832160,-150.0,0.00016999,2]
[393904706,1763089832169,-500.0,0.00016999,2]
[393904707,1763089832178,-500.0,0.00016999,2]
[393904708,1763089832187,-150.0,0.00016999,2]
[393904709,1763089832196,-500.0,0.00016999,2]
[393904710,1763089832206,-150.0,0.00016999,2]
[393904711,1763089832215,-547.0,0.00016999,2]
[393904712,1763089832224,-625.0,0.00016999,2]
[393904713,1763089832233,-349.37199734,0.00016999,2]
[393904714,1763089832243,-540.77532729,0.00016999,2]
[393904715,1763089832252,-150.0,0.00016999,2]
[393904716,1763089832262,-150.0,0.00016999,2]
[393904717,1763089832271,-500.0,0.00016999,2]
[393904718,1763089832280,-500.0,0.00016999,2]
[393904719,1763089832289,-500.0,0.00016999,2]
[393904720,1763089832297,-405.76404547,0.00016999,2]
[393904721,1763089832306,-500.0,0.00016999,2]
[393904722,1763089832315,-500.0,0.00016999,2]
[393904723,1763089832324,-500.0,0.00016999,2]
[393904724,1763089832332,-329.6749093,0.00016999,2]
[393904725,1763089832341,-500.0,0.00016999,2]
[393904726,1763089832350,-337.04464131,0.00016999,2]
[393904727,1763089832359,-500.0,0.00016999,2]
[393904728,1763089832368,-500.0,0.00016999,2]
[393904729,1763089832379,-500.0,0.00016999,2]
[393904730,1763089832388,-563.64390083,0.00016999,2]
[393904731,1763089832397,-500.0,0.00016999,2]
[393904732,1763089832408,-168.77952212,0.00016999,2]
[393904733,1763089832418,-394.28767457,0.00016999,2]
[393904734,1763089832427,-500.0,0.00016999,2]
[393904735,1763089832436,-500.0,0.00016999,2]
[393904736,1763089832446,-500.0,0.00016999,2]
[393904737,1763089832455,-500.0,0.00016999,2]
[393904738,1763089832464,-500.0,0.00016999,2]
[393904739,1763089832473,-232.7847547,0.00016999,2]
[393904740,1763089832482,-500.0,0.00016999,2]
[393904741,1763089832492,-500.0,0.00016999,2]
[393904742,1763089832501,-500.0,0.00016999,2]
[393904743,1763089832510,-500.0,0.00016999,2]
[393904744,1763089832520,-444.92660221,0.00016999,2]
[393904745,1763089832530,-500.0,0.00016999,2]
[393904746,1763089832539,-500.0,0.00016999,2]
[393904747,1763089832548,-355.27474597,0.00016999,2]
[393904748,1763089832559,-500.0,0.00016999,2]
[393904749,1763089832568,-371.38502809,0.00016999,2]
[393904750,1763089832578,-500.0,0.00016999,2]
[393904751,1763089832587,-500.0,0.00016999,2]
[393904752,1763089832596,-236.81006574,0.00016999,2]
[393904753,1763089832605,-150.0,0.00016999,2]
[393904754,1763089832614,-160.16731255,0.00016999,2]
[393904755,1763089832623,-150.0,0.00016999,2]
[393904756,1763089832632,-150.0,0.00016999,2]
[393904757,1763089832642,-150.0,0.00016999,2]
[393904758,1763089832654,-150.0,0.00016999,2]
[393904759,1763089832663,-150.0,0.00016999,2]
[393904760,1763089832673,-500.0,0.00016999,2]
[393904761,1763089832683,-304.99504795,0.00016999,2]
[393904762,1763089832696,-500.0,0.00016999,2]
[393904763,1763089832705,-65618.48160056,0.00017,2]
[393904764,1763089832749,500.0,0.00040984,30]
[393904765,1763089832811,592.94551554,0.00040984,30]
[393904766,1763089832942,652.28,0.00040984,30]
[393904767,1763089833042,870.36,0.00040984,30]
[393904768,1763089833078,500.0,0.00040984,30]
[393904769,1763089833312,539.89,0.00040984,30]
[393904770,1763089833348,652.28,0.00040984,30]
[393904771,1763089833380,500.0,0.00040984,30]
[393904772,1763089833412,870.36,0.00040984,30]
[393904773,1763089833444,500.0,0.00040984,30]
[393904774,1763089833478,539.89,0.00040984,30]
[393904775,1763089833511,652.28,0.00040984,30]
[393904776,1763089833542,500.0,0.00040984,30]
[393904778,1763089833589,870.36,0.00040984,30]
[393904779,1763089833625,530.69640812,0.00040984,30]
[393904780,1763089833663,539.89,0.00040984,30]
[393904781,1763089833781,652.28,0.00040984,30]
[393904782,1763089833838,500.0,0.00040984,30]
[393904784,1763089833877,870.36,0.00040984,30]
[393904786,1763089833912,539.89,0.00040984,30]
[393904787,1763089833958,652.3728923,0.00040984,30]
[393904788,1763089833993,500.0,0.00040984,30]
[393904789,1763089834039,870.36,0.00040984,30]
[393904790,1763089834080,539.89,0.00040984,30]
[393904791,1763089834114,500.0,0.00040984,30]
[393904793,1763089834155,870.36,0.00040984,30]
[393904795,1763089834187,539.89,0.00040984,30]
[393904796,1763089834275,870.36,0.00040984,30]
[393904797,1763089834308,539.89,0.00040984,30]
[393904798,1763089834357,870.36,0.00040984,30]
[393904800,1763089834392,539.89,0.00040984,30]
[393904803,1763089834937,870.36,0.00040984,30]
[393904804,1763089834969,539.89,0.00040984,30]
[393904805,1763089835030,870.36,0.00040984,30]
[393904806,1763089835062,539.89,0.00040984,30]
[393904807,1763089835101,539.89,0.00040984,30]
[393904808,1763089835139,870.36,0.00040984,30]
[393904810,1763089835270,539.89,0.00040984,30]
[393904811,1763089835308,870.36,0.00040984,30]
[393904812,1763089835366,500.0,0.00040984,30]
[393904813,1763089835408,870.36,0.00040984,30]
[393904815,1763089835446,500.0,0.00040984,30]
[393904816,1763089835484,539.89,0.00040984,30]
[393904817,1763089835530,870.36,0.00040984,30]
[393904818,1763089835585,500.0,0.00040984,30]
[393904819,1763089835616,539.89,0.00040984,30]
[393904821,1763089835764,870.36,0.00040984,30]
[393904822,1763089835842,500.0,0.00040984,30]
[393904823,1763089835875,539.89,0.00040984,30]
[393904824,1763089835915,500.0,0.00040984,30]
[393904826,1763089836087,539.89,0.00040984,30]
[393904827,1763089836118,500.0,0.00040984,30]
[393904828,1763089836193,386.61007265,0.00040984,30]
[393904830,1763089836323,539.89,0.00040984,30]
[393904831,1763089836355,371.29769898,0.00040984,30]
[393904832,1763089836392,870.36,0.00040984,30]
[393904834,1763089836506,500.0,0.00040984,30]
[393904836,1763089836768,539.89,0.00040984,30]
[393904837,1763089836800,500.0,0.00040984,30]
[393904838,1763089836837,870.36,0.00040984,30]
[393904839,1763089836869,512.59563245,0.00040984,30]
[393904840,1763089836907,500.0,0.00040984,30]
[393904842,1763089836947,539.89,0.00040984,30]
[393904843,1763089836980,500.0,0.00040984,30]
[393904844,1763089837012,870.36,0.00040984,30]
[393904845,1763089837079,500.0,0.00040984,30]
[393904846,1763089837125,539.89,0.00040984,30]
[393904847,1763089837158,500.0,0.00040984,30]
[393904848,1763089837190,500.0,0.00040984,30]
[393904849,1763089837222,870.36,0.00040984,30]
[393904851,1763089837304,500.0,0.00040984,30]
[393904852,1763089837337,500.0,0.00040984,30]
[393904853,1763089837350,-604.0,0.00016999,2]
[393904854,1763089837359,-792.95745328,0.00017,2]
[393904856,1763089837370,-512.0,0.00017,2]
[393904857,1763089837404,500.0,0.00040984,30]
[393904858,1763089837442,539.89,0.00040984,30]
[393904859,1763089837491,870.36,0.00040984,30]
[393904864,1763089837557,500.0,0.00040984,30]
[393904867,1763089837592,500.0,0.00040984,30]
[393904871,1763089837630,500.0,0.00040984,30]
[393904879,1763089837671,539.89,0.00040984,30]
[393904883,1763089837726,870.36,0.00040984,30]
[393904886,1763089837813,500.0,0.00040984,30]
[393904888,1763089837851,500.0,0.00040984,30]
[393904889,1763089837891,539.89,0.00040984,30]
[393904890,1763089837930,500.0,0.00040984,30]
[393904892,1763089837994,870.36,0.00040984,30]
[393904893,1763089838075,500.0,0.00040984,30]
[393904894,1763089838114,500.0,0.00040984,30]
[393904895,1763089838156,539.94301242,0.00040984,30]
[393904897,1763089838216,500.0,0.00040984,30]
[393904898,1763089838266,870.36,0.00040984,30]
[393904899,1763089838313,500.0,0.00040984,30]
[393904900,1763089838354,500.0,0.00040984,30]
[393904903,1763089838455,500.0,0.00040984,30]
[393904904,1763089838505,870.36221363,0.00040984,30]
[393904905,1763089838578,500.0,0.00040984,30]
[393904906,1763089838617,500.0,0.00040984,30]
[393904909,1763089838734,578.97911426,0.00040984,30]
[393904910,1763089838825,500.0,0.00040984,30]
[393904911,1763089838865,500.0,0.00040984,30]
[393904914,1763089839085,296.2705381,0.00040984,30]
[393904915,1763089839138,500.0,0.00040984,30]
[393904916,1763089839180,500.0,0.00040984,30]
[393904919,1763089839376,633.84668556,0.00040984,30]
[393904920,1763089839417,500.0,0.00040984,30]
[393904922,1763089839461,-152.65444299,0.000169,2]
[393904923,1763089839471,-1538.00557701,0.00017,2]
[393904924,1763089839481,-918.085566,0.00017,2]
[393904926,1763089839513,-350620.46980315,0.00017,2]
[393904927,1763089839522,-2000.0,0.00017,2]
[393904928,1763089839532,-250.0,0.00017,2]
[393904929,1763089839541,-2968.10697547,0.00017011,2]
[393904930,1763089839550,-500.0,0.00017026,2]
[393904931,1763089839558,-500.0,0.00017026,2]
[393904932,1763089839567,-500.0,0.00017026,2]
[393904933,1763089839576,-500.0,0.00017026,2]
[393904934,1763089839586,-500.0,0.00017026,2]
[393904935,1763089839595,-500.0,0.00017026,2]
[393904936,1763089839604,-547.0,0.00017026,2]
[393904937,1763089839613,-625.0,0.00017026,2]
[393904938,1763089839623,-150.0,0.00017026,2]
[393904939,1763089839634,-150.0,0.00017026,2]
[393904940,1763089839643,-500.0,0.00017026,2]
[393904941,1763089839657,-604.0,0.00017026,2]
[393904942,1763089839665,-166.66,0.00017048,2]
[393904943,1763089839674,-424.0,0.00017053,2]
[393904944,1763089839683,-500.0,0.00017054,2]
[393904945,1763089839693,-500.0,0.00017054,2]
[393904946,1763089839701,-500.0,0.00017054,2]
[393904947,1763089839710,-500.0,0.00017054,2]
[393904948,1763089839719,-500.0,0.00017054,2]
[393904949,1763089839731,-500.0,0.00017054,2]
[393904950,1763089839740,-547.0,0.00017054,2]
[393904951,1763089839748,-625.0,0.00017054,2]
[393904953,1763089839758,-204.47724072,0.00017054,2]
[393904955,1763089839767,-152.81054111,0.00017054,2]
[393904957,1763089839776,-500.0,0.00017054,2]
[393904959,1763089839786,-604.0,0.00017054,2]
[393904960,1763089839795,-500.0,0.00017081,2]
[393904961,1763089839804,-500.0,0.00017081,2]
[393904962,1763089839813,-500.0,0.00017081,2]
[393904963,1763089839822,-367.04874212,0.00017081,2]
[393904965,1763089839832,-500.0,0.00017081,2]
[393904966,1763089839841,-574.79698684,0.00017081,2]
[393904967,1763089839850,-547.0,0.00017081,2]
[393904968,1763089839860,-625.0,0.00017081,2]
[393904969,1763089839869,-500.0,0.00017081,2]
[393904970,1763089839879,-604.0,0.00017081,2]
[393904971,1763089839889,-1000.0,0.000171,2]
[393904972,1763089839898,-157.71452905,0.000171,2]
[393904973,1763089839909,-800.0,0.000171,6]
[393904974,1763089839919,-500.0,0.00017109,2]
[393904975,1763089839928,-233.54036981,0.00017109,2]
[393904976,1763089839938,-500.0,0.00017109,2]
[393904978,1763089839947,-500.0,0.00017109,2]
[393904979,1763089839957,-547.0,0.00017109,2]
[393904980,1763089839966,-625.0,0.00017109,2]
[393904981,1763089839975,-500.0,0.00017109,2]
[393904982,1763089839985,-604.0,0.00017109,2]
[393904983,1763089839995,-2968.10697547,0.00017122,2]
[393904984,1763089840004,-500.0,0.00017136,2]
[393904985,1763089840014,-500.0,0.00017136,2]
[393904986,1763089840023,-547.0,0.00017136,2]
[393904987,1763089840033,-625.0,0.00017136,2]
[393904988,1763089840042,-500.0,0.00017136,2]
[393904989,1763089840052,-604.0,0.00017136,2]
[393904991,1763089840062,-987.48148324,0.00017142,2]
[393904992,1763089840071,-424.0,0.00017148,2]
[393904993,1763089840081,-500.0,0.00017163,2]
[393904994,1763089840090,-500.0,0.00017163,2]
[393904995,1763089840099,-547.0,0.00017163,2]
[393904996,1763089840110,-625.0,0.00017163,2]
[393904997,1763089840120,-500.0,0.00017163,2]
[393904998,1763089840133,-604.0,0.00017163,2]
[393904999,1763089840143,-424.0,0.0001719,2]
[393905000,1763089840152,-500.0,0.00017191,2]
[393905001,1763089840161,-500.0,0.00017191,2]
[393905002,1763089840170,-547.0,0.00017191,2]
[393905003,1763089840180,-625.0,0.00017191,2]
[393905005,1763089840189,-500.0,0.00017191,2]
[393905006,1763089840200,-604.0,0.00017191,2]
[393905007,1763089840209,-500.0,0.00017199,2]
[393905008,1763089840218,-500.0,0.00017199,2]
[393905009,1763089840228,-1700.0,0.000172,6]
[393905010,1763089840237,-500.0,0.00017218,2]
[393905011,1763089840246,-500.0,0.00017218,2]
[393905012,1763089840255,-547.0,0.00017218,2]
[393905013,1763089840263,-625.0,0.00017218,2]
[393905014,1763089840273,-500.0,0.00017218,2]
[393905015,1763089840282,-604.0,0.00017218,2]
[393905016,1763089840291,-2968.10697547,0.00017233,2]
[393905017,1763089840299,-500.0,0.00017246,2]
[393905018,1763089840308,-500.0,0.00017246,2]
[393905019,1763089840317,-547.0,0.00017246,2]
[393905020,1763089840327,-625.0,0.00017246,2]
[393905021,1763089840338,-500.0,0.00017246,2]
[393905022,1763089840347,-604.0,0.00017246,2]
[393905023,1763089840357,-500.0,0.00017273,2]
[393905024,1763089840367,-500.0,0.00017273,2]
[393905025,1763089840376,-547.0,0.00017273,2]
[393905026,1763089840386,-625.0,0.00017273,2]
[393905027,1763089840396,-500.0,0.00017273,2]
[393905028,1763089840405,-604.0,0.00017273,2]
[393905029,1763089840414,-157.71452905,0.000173,2]
[393905030,1763089840423,-1208.02,0.000173,2]
[393905031,1763089840432,-1203.03,0.000173,2]
[393905032,1763089840441,-2600.0,0.000173,6]
[393905033,1763089840451,-438.89783888,0.000173,2]
[393905034,1763089840460,-500.0,0.000173,2]
[393905035,1763089840469,-547.0,0.000173,2]
[393905036,1763089840478,-625.0,0.000173,2]
[393905037,1763089840488,-500.0,0.000173,2]
[393905038,1763089840497,-604.0,0.000173,2]
[393905039,1763089840506,-500.0,0.00017328,2]
[393905041,1763089840516,-547.0,0.00017328,2]
[393905042,1763089840525,-625.0,0.00017328,2]
[393905043,1763089840535,-476.20736494,0.00017328,2]
[393905044,1763089840544,-604.0,0.00017328,2]
[393905046,1763089840553,-2968.10697547,0.00017344,2]
[393905047,1763089840562,-597.73590631,0.00017355,2]
[393905048,1763089840571,-547.0,0.00017355,2]
[393905049,1763089840580,-625.0,0.00017355,2]
[393905050,1763089840589,-604.0,0.00017355,2]
[393905051,1763089840598,-424.0,0.00017366,2]
[393905052,1763089840607,-166.66,0.00017379,2]
[393905053,1763089840617,-547.0,0.00017383,2]
[393905054,1763089840627,-625.0,0.00017383,2]
[393905055,1763089840638,-604.0,0.00017383,2]
[393905056,1763089840650,-170.87,0.00017399,2]
[393905057,1763089840660,-150.0,0.000174,2]
[393905058,1763089840669,-1208.02,0.000174,2]
[393905059,1763089840678,-3400.0,0.000174,6]
[393905060,1763089840688,-547.0,0.0001741,2]
[393905062,1763089840697,-625.0,0.0001741,2]
[393905063,1763089840706,-604.0,0.0001741,2]
[393905064,1763089840715,-547.0,0.00017437,2]
[393905065,1763089840725,-625.0,0.00017437,2]
[393905067,1763089840734,-604.0,0.00017437,2]
[393905068,1763089840743,-2968.10697547,0.00017456,2]
[393905069,1763089840752,-547.0,0.00017465,2]
[393905070,1763089840762,-625.0,0.00017465,2]
[393905071,1763089840771,-604.0,0.00017465,2]
[393905072,1763089840781,-150.0,0.00017473,2]
[393905073,1763089840790,-150.0,0.00017473,2]
[393905074,1763089840799,-424.0,0.0001748,2]
[393905075,1763089840809,-547.0,0.00017492,2]
[393905076,1763089840818,-625.0,0.00017492,2]
[393905077,1763089840828,-604.0,0.00017492,2]
[393905078,1763089840837,-157.71452905,0.000175,2]
[393905079,1763089840846,-4300.0,0.000175,6]
[393905080,1763089840855,-4759.0,0.0001751,2]
[393905081,1763089840865,-547.0,0.0001752,2]
[393905082,1763089840874,-625.0,0.0001752,2]
[393905083,1763089840885,-604.0,0.0001752,2]
[393905084,1763089840894,-503.73540755,0.00017521,2]
[393905085,1763089840903,-547.0,0.00017547,2]
[393905086,1763089840913,-625.0,0.00017547,2]
[393905087,1763089840924,-604.0,0.00017547,2]
[393905088,1763089840933,-168.0,0.00017564,2]
[393905089,1763089840942,-2968.10697547,0.00017567,2]
[393905090,1763089840951,-547.0,0.00017574,2]
[393905091,1763089840960,-625.0,0.00017574,2]
[393905093,1763089840969,-604.0,0.00017574,2]
[393905094,1763089840979,-800.0,0.000176,6]
[393905095,1763089840988,-547.0,0.00017602,2]
[393905096,1763089840997,-625.0,0.00017602,2]
[393905097,1763089841007,-604.0,0.00017602,2]
[393905099,1763089841017,-168.0,0.00017627,2]
[393905100,1763089841026,-566.20112483,0.00017629,2]
[393905101,1763089841036,-630.08399798,0.00017629,2]
[393905102,1763089841045,-613.5562112,0.00017629,2]
[393905103,1763089841055,-427.06,0.0001763,2]
[393905104,1763089841064,-424.0,0.00017631,2]
[393905105,1763089841074,-424.0,0.00017657,2]
[393905106,1763089841083,-814.0,0.00017659,2]
[393905107,1763089841092,-1275.0,0.00017659,2]
[393905108,1763089841101,-1056.017,0.00017659,2]
[393905109,1763089841110,-1190.0,0.00017659,2]
[393905112,1763089841304,-2968.10697547,0.00017678,2]
[393905113,1763089841314,-6669.0,0.00017684,2]
[393905114,1763089841324,-6486.0,0.00017684,2]
[393905115,1763089841334,-2145.0,0.00017684,2]
[393905116,1763089841343,-185.043,0.0001769,2]
[393905117,1763089841352,-157.71452905,0.000177,2]
[393905118,1763089841361,-800.0,0.000177,6]
[393905119,1763089841371,-560.0,0.00017704,2]
[393905120,1763089841380,-1937.841,0.00017713,2]
[393905121,1763089841393,-150.99,0.00017728,2]
[393905122,1763089841402,-1429.42,0.00017728,2]
[393905123,1763089841412,-9999.99,0.00017728,2]
[393905124,1763089841421,-999.99,0.00017728,2]